Cogmind - Beta 10.2 @@@ ROGUE MODE // 2020.10.31 @ 18:00:26 // Halloween2020/ForbiddenLore Player: Boris Result: Destroyed by B-99 Colossus with Multirail Performance ------------- Evolutions (9) 4500 Regions Visited (27) 5400 Robots Destroyed (359) 1795 Value Destroyed (20289) 20289 Prototype IDs (37) 740 Alien Tech Used (0) 0 Bonus (11869) 11869 TOTAL SCORE: 44593 Bonus ------- High Alert Combat Kills 3833 Follower Combat Kills 3862 Entered Garrisons 1800 Used RIF Installer 4500 Aligned with FarCom 300 Friendly Fire -2426 Cogmind --------- Core Integrity 0/1600 Matter 286/300 Energy 99/100 System Corruption 19% Temperature Cool (0) Movement Core (50) Location -1/Access Parts ------- > --- POWER (2) -------- (None) > --- PROPULSION (4) --- (None) > --- UTILITY (16) ----- Advanced Target Analyzer > --- WEAPON (3) ------- (None) > --- INVENTORY (4) ---- Relay Coupler [ARC] (12) Advanced Remote Datajack Peak State ------------ > --- POWER ------------ Light Quantum Reactor > --- PROPULSION ------- Myomer Leg Myomer Leg Biometal Leg Wheel > --- UTILITY ---------- Improved Cooling System Advanced Cooling System Large Storage Unit High-capacity Storage Unit High-capacity Storage Unit High-capacity Storage Unit Advanced Target Analyzer Advanced Armor Integrity Analyzer Damper Plating Improved Focal Shield Relay Coupler [NC] Relay Coupler [Grunt] Relay Coupler [Brawler] Relay Coupler [Hunter] > --- WEAPON ----------- Gamma Rifle Gamma Rifle Fusion Bomb Launcher > --- INVENTORY -------- Light Quantum Reactor Improved Antigrav System Matter Compressor Relay Coupler [NC] Relay Coupler [ARC] Relay Coupler [Swarmer] Relay Coupler [Duelist] Relay Coupler [Sentry] Relay Coupler [Sentry] Relay Coupler [Demolisher] Relay Coupler [Specialist] Long-range Tractor Beam AWS/Thermal Enhanced Quantum Rifle Enhanced Quantum Rifle Long-range Proton Cannon Enhanced Nova Cannon Enhanced Nova Cannon Heavy Machine Gun Railgun Railgun Railgun Long-range Missile Launcher Advanced Remote Datajack Enhanced Force Lance [Rating: 137] Favorites ----------- Power Improved Ion Engine Engine Improved Ion Engine Power Core Neutrino Core Reactor Particle Reactor Propulsion Armored Wheel Treads Light Treads Leg Myomer Leg Wheel Armored Wheel Hover Unit Improved Antigrav System Utility High-capacity Storage Unit Device Advanced Force Field Storage High-capacity Storage Unit Processor Enhanced Optical Array Hackware Relay Coupler [Grunt] Protection Improved Medium Armor Plating Weapon KE Penetrator Energy Gun Gamma Rifle Energy Cannon Advanced Beam Cannon Ballistic Gun KE Penetrator Ballistic Cannon Hardcell Cannon Launcher Long-range Missile Launcher Special Weapon Remote Datajack Slashing Weapon Great Axe Piercing Weapon Enhanced Force Lance Special Melee Weapon Improved Datajack Build | -11 -10 -10 -9 -9 -9 -8 -8 -8 -7 -7 -7 -7 -6 -6 -5 -5 -4 -4 -4 -4 -4 -4 -3 -3 -2 -2 -1 ------- Run | Scr Mat Min Mat Min Exi Min Mat Gar Fac Gar Fac Gar Fac Gar Fac Gar Fac Was Fac Gar Fac Gar Res Gar Res Gar Acc Slots Evolved 18 | . . . 2 . . . 2 . 2 . . . 2 . 2 . 2 . . . . . 2 . 2 . 2 Power 1 | . . . . . . . . . . . . . . . . . . . . . . . 1 . . . . Propulsion 2 | . . . . . . . . . . . . . 1 . . . . . . . . . 1 . . . . Utility 14 | . . . 1 . . . 2 . 2 . . . 1 . 2 . 2 . . . . . . . 2 . 2 Weapon 1 | . . . 1 . . . . . . . . . . . . . . . . . . . . . . . . Parts Attached 599 | 6 7 5 27 4 1 9 35 32 7 38 31 44 11 43 11 36 7 2 2 23 1 33 39 38 22 31 54 Power 30 | 1 . 1 3 . . 1 1 1 . 3 1 2 . 3 1 1 . . . . . 2 2 2 . 1 4 Engine 13 | 1 . 1 3 . . 1 1 1 . 1 1 2 . 1 . . . . . . . . . . . . . Core 8 | . . . . . . . . . . 2 . . . 2 1 1 . . . . . . 1 . . . 1 Reactor 9 | . . . . . . . . . . . . . . . . . . . . . . 2 1 2 . 1 3 Propulsion 93 | 2 2 . 6 . 1 1 6 3 . 6 5 5 1 6 1 4 . 1 . 4 . 5 13 9 . 5 7 Treads 35 | 2 2 . 6 . 1 1 6 3 . 1 1 . . . . 1 . 1 . 1 . 2 3 2 . 2 . Leg 18 | . . . . . . . . . . 3 . . . . . 1 . . . . . 3 6 2 . . 3 Wheel 33 | . . . . . . . . . . 2 4 5 1 6 1 2 . . . 3 . . . 5 . 3 1 Hover 7 | . . . . . . . . . . . . . . . . . . . . . . . 4 . . . 3 Flight . | . . . . . . . . . . . . . . . . . . . . . . . . . . . . Utility 143 | 1 3 . 3 . . 1 10 6 5 5 7 11 6 6 3 14 4 1 2 5 . 9 7 9 6 9 10 Device 41 | . . . . . . 1 4 1 1 . 1 1 2 . . 3 1 . . 1 . 5 2 7 2 7 2 Storage 10 | 1 3 . . . . . 1 . . . 2 1 . . . . . . . . . . . . 1 . 1 Processor 6 | . . . . . . . 1 . . . . . 1 . . . 1 . . . . . 1 . . . 2 Hackware 46 | . . . . . . . 1 1 3 3 3 5 1 5 2 7 . . 2 2 . 2 2 1 3 2 1 Protection 40 | . . . 3 . . . 3 4 1 2 1 4 2 1 1 4 2 1 . 2 . 2 2 1 . . 4 Artifact . | . . . . . . . . . . . . . . . . . . . . . . . . . . . . Weapon 333 | 2 2 4 15 4 . 6 18 22 2 24 18 26 4 28 6 17 3 . . 14 1 17 17 18 16 16 33 Energy Gun 69 | 1 1 . 7 . . . 3 2 . 4 8 7 . 4 1 3 . . . 1 . 5 6 3 2 . 11 Energy Cannon 32 | . 1 . 3 . . 3 6 6 . 2 . . . . . 3 . . . 3 . 2 . 1 . 1 1 Ballistic Gun 99 | 1 . 2 4 2 . . 4 2 . 7 2 11 2 13 2 4 3 . . 3 . 3 6 5 4 8 11 Ballistic Cannon 3 | . . . . . . . . . . . . . . . . 1 . . . . . 1 1 . . . . Launcher 45 | . . 1 1 2 . 3 3 8 . 3 . 2 . 3 . 2 . . . 1 . 2 1 3 4 4 2 Special Weapon 44 | . . 1 . . . . . . . . 8 5 2 4 2 4 . . . . . . 1 4 6 1 6 Impact Weapon . | . . . . . . . . . . . . . . . . . . . . . . . . . . . . Slashing Weapon 12 | . . . . . . . 2 3 1 3 . 1 . . . . . . . . . . 1 . . . 1 Piercing Weapon 14 | . . . . . . . . . . . . . . 4 1 . . . . 2 . 1 1 2 . 2 1 Special Melee Weapon 15 | . . . . . . . . 1 1 5 . . . . . . . . . 4 1 3 . . . . . Unidentified Prototypes 9 | . . . 4 . . . . . . . . . . . . . . . . . . . 4 . . . 1 Parts Lost 108 | . 1 . 3 . . 1 . 3 . 14 . 6 . 6 2 13 . . . . . 14 9 7 1 . 28 Power 13 | . . . . . . . . 1 . 2 . 1 . 1 . 1 . . . . . 1 1 . . . 5 Propulsion 25 | . . . . . . . . . . 4 . . . 2 . 2 . . . . . 4 4 3 . . 6 Utility 29 | . . . 1 . . 1 . 1 . 1 . 1 . . 1 3 . . . . . 5 3 2 1 . 9 Weapon 41 | . 1 . 2 . . . . 1 . 7 . 4 . 3 1 7 . . . . . 4 1 2 . . 8 Highest Loss Streak 9 | . 1 . 2 . . 1 . 1 . 9 . 3 . 2 2 8 . . . . . 7 4 3 1 . 7 Average Slot Usage (%) 96 | . 97 100 99 100 100 99 98 98 100 96 99 98 100 97 99 95 98 100 100 97 100 98 97 98 99 99 63 Engine 4 | . 14 14 10 11 11 11 9 8 7 2 7 6 6 . 3 . . . . . . . . . . . . Core 1 | . . . . . . . . . . 4 . . . 5 1 3 5 5 5 5 5 2 1 . . . 2 Reactor 1 | . . . . . . . . . . . . . . . . . . . . . . 2 5 8 8 8 2 Treads 8 | . 27 28 22 22 22 22 18 18 15 . 1 . . . . 1 . 4 5 4 . 1 2 5 . 4 . Leg 1 | . . . . . . . . . . 7 4 . . . . 1 . . . . . 7 11 . . . . Wheel 6 | . . . . . . . . . . 5 7 15 20 17 17 11 15 10 10 8 15 5 . 9 17 11 5 Device 3 | . . . . . . 2 7 . 2 . . 4 . . . 1 4 5 5 5 5 4 1 7 15 16 8 Storage 22 | . 25 28 22 22 22 22 27 27 23 23 23 30 26 26 23 23 21 21 21 21 21 21 19 19 17 17 12 Processor 3 | . . . . . . . 2 . . . . . 5 6 5 5 5 10 10 10 10 10 11 9 8 4 6 Hackware 14 | . . . . . . . 1 12 21 25 22 9 13 18 22 21 26 24 21 20 21 22 18 19 17 21 13 Protection 4 | . . . 10 11 11 8 5 4 5 4 7 6 6 1 5 4 5 1 5 4 5 3 4 1 . . 1 Energy Gun 1 | . 6 . 6 . . . . . . 1 4 3 . 1 5 2 . . . . 4 3 2 . . . 4 Energy Cannon 3 | . 7 14 8 11 11 5 7 4 2 . . . . . . 4 5 . . 2 . . . . . . . Ballistic Gun 12 | . 14 10 16 21 22 22 17 16 15 11 14 17 19 10 5 4 10 15 15 10 10 7 3 6 6 11 3 Naked Turns 1 | . . . . . . . . . . . . . . . . . . . . . . . . . . . 1 Heaviest Build 206 | 12 74 75 84 84 84 84 101 104 101 106 140 149 149 148 140 172 149 149 149 152 149 155 173 188 188 192 206 Greatest Support 126 | 40 40 40 40 40 40 40 40 40 40 40 32 24 36 36 36 36 36 36 24 36 36 70 95 126 48 56 78 Greatest Overweight (x) 67 | . 1 1 2 2 2 2 2 2 2 27 8 6 4 5 3 14 4 6 6 12 4 12 6 15 3 7 67 Average Overweight (x) 3 | . . 1 1 2 2 2 2 2 2 4 4 5 4 3 3 6 3 5 6 7 4 3 1 2 3 3 3 Largest Inventory Capacity 34 | 6 20 20 20 20 20 20 26 26 26 26 34 34 34 34 34 34 34 34 34 34 34 34 34 34 34 34 34 Average Capacity 28 | 5 12 20 20 20 20 20 26 26 26 26 26 34 34 34 34 34 34 34 34 34 34 34 34 34 34 34 26 Most Carried 34 | 2 15 20 20 20 20 20 26 26 25 26 31 34 34 34 34 34 34 34 34 34 34 34 34 34 34 34 34 Average Carried 27 | 1 7 19 19 19 19 19 25 25 23 25 25 33 33 33 33 32 33 33 33 33 34 33 33 33 32 33 23 Final Capacity 34 | 6 20 20 20 20 20 20 26 26 26 26 34 34 34 34 34 34 34 34 34 34 34 34 34 34 34 34 4 Final Carried 34 | 2 15 20 20 20 20 20 26 26 24 26 31 34 34 34 34 34 34 34 34 34 34 34 34 34 33 34 2 Class Distribution -------------------- 28% | Botlord-Mutant 17% | Bothacker-Mutant 12% | Hauler-Mutant 9% | Hauler-Tank 6% | Hauler-Skirmisher 6% | Scavenger-Mutant 4% | Bothacker-Tank 3% | Botlord-Gunner 3% | Mutant Dominant Class ---------------- Mutant | -10/Materials Hauler-Mutant | -10/Mines Hauler-Tank | -9/Materials Hauler-Tank | -9/Mines Hauler-Tank | -9/Exiles Hauler-Mutant | -8/Mines Hauler-Skirmisher | -8/Materials Hauler-Mutant | -8/Garrison Bothacker-Mutant | -7/Factory Bothacker-Mutant | -7/Garrison Bothacker-Mutant | -7/Factory Bothacker-Mutant | -7/Garrison Bothacker-Tank | -6/Factory Botlord-Mutant | -6/Garrison Botlord-Mutant | -5/Factory Botlord-Mutant | -5/Garrison Scavenger-Tank | -4/Factory Hauler-Gunner | -4/Waste Botlord-Gunner | -4/Factory Botlord-Mutant | -4/Garrison Botlord-Gunner | -4/Factory Scavenger-Mutant | -4/Garrison Scavenger-Mutant | -3/Research Botlord-Mutant | -3/Garrison Botlord-Mutant | -2/Research Botlord-Mutant | -2/Garrison Botlord-Mutant | -1/Access Resources | -11 -10 -10 -9 -9 -9 -8 -8 -8 -7 -7 -7 -7 -6 -6 -5 -5 -4 -4 -4 -4 -4 -4 -3 -3 -2 -2 -1 ----------- Run | Scr Mat Min Mat Min Exi Min Mat Gar Fac Gar Fac Gar Fac Gar Fac Gar Fac Was Fac Gar Fac Gar Res Gar Res Gar Acc Matter Collected 14005 | 230 261 195 495 116 . 222 555 681 74 650 375 850 695 960 207 985 56 302 . 542 . 697 453 1055 733 1123 1493 Remotely 931 | . . . . . . . . . . . . . 235 . . 115 . . . 116 . . . . . 221 244 Salvage Created 18154 | . 687 212 1204 165 . 421 1268 1223 74 922 109 658 1357 1106 170 902 70 661 . 593 . 858 1138 1140 126 1178 1912 Parts 839 | . 45 3 82 12 . 12 77 74 5 36 7 35 64 35 5 25 4 11 . 17 . 35 70 59 2 40 84 Haulers Intercepted 8 | . 2 . 2 . . . 2 . . . . . 1 . 1 . . . . . . . . . . . . Recyclers Shooed 6 | . . . 2 . . . . . . . . . . . 1 . . . . . . . 1 . . . 2 Parts Field Recycled . | . . . . . . . . . . . . . . . . . . . . . . . . . . . . Retrieved Matter . | . . . . . . . . . . . . . . . . . . . . . . . . . . . . Parts Self-Destructed . | . . . . . . . . . . . . . . . . . . . . . . . . . . . . Prevented . | . . . . . . . . . . . . . . . . . . . . . . . . . . . . Kills | -11 -10 -10 -9 -9 -9 -8 -8 -8 -7 -7 -7 -7 -6 -6 -5 -5 -4 -4 -4 -4 -4 -4 -3 -3 -2 -2 -1 ------- Run | Scr Mat Min Mat Min Exi Min Mat Gar Fac Gar Fac Gar Fac Gar Fac Gar Fac Was Fac Gar Fac Gar Res Gar Res Gar Acc Combat Hostiles Destroyed 306 | . 13 5 23 5 . 11 20 32 2 22 2 8 13 10 4 22 1 2 . 8 . 14 17 23 1 24 24 Melee 30 | . . . . . . . . 2 . 2 . . . 1 . . . . . 3 . 3 11 5 . 2 1 Guns 134 | . 6 . 17 3 . 3 5 8 2 11 2 7 13 6 4 . . 2 . 5 . 7 2 11 . 9 11 Cannons 48 | . 7 4 3 2 . 3 6 5 . 3 . . . . . 9 1 . . . . 3 1 . . . 1 AOE 82 | . . 1 3 . . 5 8 16 . 6 . 1 . 3 . 12 . . . . . 1 2 6 1 12 5 Classes Destroyed 21 | . 6 2 2 . . 1 4 . . . 1 . . . . 1 . 1 . . . . . . 1 . 2 Worker 13 | . 1 1 . 2 . 1 2 . . . . . 1 . . . . . . . . . 2 . . . 3 Builder 7 | . 1 . 1 . . . 2 . . . . . 1 . . . . . . . . . . . . . 2 Tunneler 3 | . . . . . . . 1 . . . . . 1 . . . . . . . . . 1 . . . . Hauler 8 | . 2 . 2 . . . 2 . . . . . 1 . 1 . . . . . . . . . . . . Recycler 5 | . . 1 . . . . . . . . . . 2 . . . . . . . . . . . . . 2 Mechanic 1 | . . . . . . . 1 . . . . . . . . . . . . . . . . . . . . Operator 3 | . 1 . 1 . . . 1 . . . . . . . . . . . . . . . . . . . . Drone 1 | . . . . . . . . . . . . . . . . . . . . . . . . . . . 1 Watcher 5 | . . . 2 . . . 1 . . . 1 . . . . . . . . . . . . 1 . . . Swarmer 97 | . 2 . 2 3 . . . 12 1 12 . 4 . 8 4 10 . . . 3 . 3 3 21 . 9 . Saboteur 1 | . . . . . . . . . . . . . . . . . . . . . . . . . . . 1 Grunt 122 | . 11 3 13 2 . 9 10 15 . 9 . 3 9 3 . 10 1 . . 1 . 5 2 . . 10 6 Brawler 7 | . . . . . . 2 1 . . . . . 1 . . . . . . 1 . . . . . . 2 Duelist 9 | . . . . . . . 1 2 1 . . . 1 . . 1 . . . 2 . . . . . . 1 Sentry 28 | . . . 8 . . . 6 3 . 1 . 3 . . . . . . . . . 3 3 . . . 1 Specialist 2 | . . . . . . . . . . . . . . . . . . . . . . . . . 2 . . Hunter 23 | . . . . . . . 2 . . . 1 . 2 2 . . . 2 . 1 . 2 4 2 . 1 4 Programmer 17 | . . . . . . . . . . . 1 . . . . . . . . . . . 5 . . 3 8 Behemoth 3 | . . . . . . . . . . . . . . . . 1 . . . . . 1 . . . 1 . Compactor 2 | . . . . . . . . . . . . . . . . . . 2 . . . . . . . . . Assembled 2 | . . 2 . . . . . . . . . . . . . . . . . . . . . . . . . Best Kill Streak 12 | . 4 5 7 2 . 6 6 4 2 7 1 5 12 3 4 9 1 1 . 3 . 3 4 5 1 6 5 Combat Bots Only 9 | . 2 3 6 2 . 5 4 4 2 7 1 5 6 3 4 9 1 1 . 3 . 3 3 5 1 6 5 Max Kills in Single Turn 3 | . 1 2 2 1 . 3 3 3 1 3 1 2 3 2 2 3 1 2 . 1 . 1 3 3 1 3 2 Gunslinging 1 | . . . . . . . . . . . . . . . 1 . . . . . . . . . . . . Exploded 3 | . . 1 1 . . 2 2 3 . 3 . 1 . 2 . 3 . . . . . 1 2 3 1 3 2 Melee 1 | . . . . . . . . 1 . 1 . . . 1 . . . . . 1 . 1 1 1 . 1 1 Uniques/NPCs Destroyed . | . . . . . . . . . . . . . . . . . . . . . . . . . . . . Combat | -11 -10 -10 -9 -9 -9 -8 -8 -8 -7 -7 -7 -7 -6 -6 -5 -5 -4 -4 -4 -4 -4 -4 -3 -3 -2 -2 -1 -------- Run | Scr Mat Min Mat Min Exi Min Mat Gar Fac Gar Fac Gar Fac Gar Fac Gar Fac Was Fac Gar Fac Gar Res Gar Res Gar Acc Damage Taken 24783 | . 470 71 866 85 . 302 908 878 166 2051 218 1551 564 852 545 2118 16 . . 518 89 2135 2011 1823 416 513 5617 Core 4204 | . 110 16 98 . . 71 43 82 . 368 78 243 59 154 31 329 16 . . 99 23 236 289 135 65 45 1614 Absorbed by Shields 2154 | . . . . . . . . . . . . . . 5 . 90 . . . . . . . 615 288 537 619 Core Remaining (%) 64 | 100 . 49 . . . 57 . 77 . . . 1 . 74 . 64 . . . . . 67 . 67 . 92 . Volleys Fired 1201 | 9 56 38 58 12 . 17 49 91 3 61 36 77 41 102 19 99 2 21 . 43 1 78 18 76 45 56 93 Largest 3 | 2 2 2 3 3 . 3 3 3 2 3 3 3 3 3 3 3 3 3 . 3 2 3 2 3 3 3 3 Hottest 225 | 60 80 100 125 114 . 114 114 116 48 116 120 136 99 99 81 138 106 99 . 126 66 173 169 156 164 105 225 Shots Fired 2163 | 18 112 43 147 33 . 35 109 145 4 106 50 104 117 159 29 138 6 63 . 80 2 125 30 123 57 107 221 Gun 1555 | 18 80 5 106 22 . 20 72 74 4 89 26 87 114 135 21 46 4 63 . 58 2 99 22 94 27 81 186 Cannon 301 | . 32 5 36 10 . 8 29 37 . 9 . . . . . 63 2 . . 18 . 20 3 15 . 7 7 Launcher 127 | . . 2 5 1 . 7 8 34 . 8 . 4 . 5 . 10 . . . 4 . 6 1 5 4 12 11 Special 180 | . . 31 . . . . . . . . 24 13 3 19 8 19 . . . . . . 4 9 26 7 17 Kinetic 1186 | 9 56 5 70 22 . 20 62 58 4 71 15 43 114 103 10 27 4 63 . 58 2 69 13 84 18 81 105 Thermal 391 | 9 56 36 40 10 . 8 29 37 . 18 11 6 . . 11 13 2 . . 18 . 41 2 . 9 . 35 Explosive 86 | . . 2 . 1 . 7 1 9 . 4 . 4 . 5 . 10 . . . 4 . 6 1 5 4 12 11 Electromagnetic 351 | . . . 37 . . . 17 41 . 13 . 38 . 32 . 69 . . . . . 9 10 25 . 7 53 Robot Hit Streak 31 | 8 16 6 23 9 . 12 10 8 3 12 8 14 11 31 8 13 3 6 . 6 4 14 5 8 7 8 22 Robot Miss Streak 9 | 2 2 1 3 2 . 1 4 5 1 5 4 7 3 5 3 5 2 6 . 9 . 5 2 6 2 2 4 Penetration Max 2 | . . . . . . . . . . . . . 2 2 . . . 1 . . . . . . . 1 1 Secondary Targets 16 | . . . 1 . . 1 . . 1 1 1 3 . 1 2 . . . . 1 . . . 1 . . 3 Max Gunslinging Chain 1 | . . . 1 . . 1 . . 1 1 1 1 . 1 1 . . . . 1 . . . 1 . . 1 Autonomous 28 | . . . . . . . . . . . . . . . . . . . . . . . . . . . 28 Shots Hit Robots 1342 | 12 77 7 95 19 . 24 71 65 11 80 30 52 62 81 28 90 3 37 . 40 4 70 49 76 32 71 156 Core Hits 780 | 1 29 13 53 12 . 23 47 53 4 45 4 35 45 38 9 62 2 14 . 19 1 33 30 47 16 59 86 Critical Hits 109 | . 1 . . . . 2 9 1 . 1 . 1 31 29 . 3 . 3 . 2 . 4 10 1 . 4 7 Critical Kills 44 | . . . . . . 2 4 . . . . 1 18 10 . 1 . . . . . 1 6 . . . 1 Critical Parts Destroyed 58 | . 1 . . . . . 5 1 . 1 . . 13 16 . 2 . 1 . 1 . 3 4 1 . 3 6 Melee Attacks 230 | . . . . . . . 4 14 8 47 . 3 . 34 3 . . . . 16 2 19 35 31 . 11 3 Thermal 1 | . . . . . . . . . . . . . . . . . . . . . . . . . . . 1 Impact . | . . . . . . . . . . . . . . . . . . . . . . . . . . . . Slashing 63 | . . . . . . . 4 13 1 42 . 3 . . . . . . . . . . . . . . . Piercing 137 | . . . . . . . . . . . . . . 34 3 . . . . 11 . 10 35 31 . 11 2 Sneak Attacks 27 | . . . . . . . 2 . 4 3 . 3 . 5 1 . . . . 5 1 . 2 1 . . . Combat Hostiles 8 | . . . . . . . . . . 3 . . . 1 . . . . . 4 . . . . . . . Follow-up Attacks . | . . . . . . . . . . . . . . . . . . . . . . . . . . . . Damage Inflicted 43550 | 108 1145 256 1834 374 . 1065 2296 2251 68 2539 265 1277 575 1649 356 3643 54 1229 . 1866 39 2227 2497 3252 1318 4807 6560 Guns 16516 | 106 665 27 1056 110 . 158 594 510 68 790 264 771 575 338 215 579 30 1212 . 609 39 1033 319 931 212 1524 3781 Cannons 4747 | . 458 90 463 153 . 144 531 339 . 162 . . . . . 1192 24 . . . . 530 73 234 . 147 207 Explosions 14100 | . . 138 297 35 . 762 866 1234 . 543 . 178 . 246 . 1872 . . . 207 . 364 503 798 1106 2529 2422 Melee 7909 | . . . . . . . 247 168 . 1044 . 328 . 1065 141 . . . . 1050 . 300 1602 1289 . 607 68 Ramming 278 | 2 22 1 18 76 . 1 58 . . . 1 . . . . . . 17 . . . . . . . . 82 Kinetic 12613 | 60 429 27 633 110 . 158 455 346 68 609 164 484 575 338 44 399 30 1212 . 609 39 1059 197 773 212 1524 2059 Thermal 5153 | 46 694 90 557 153 . 217 744 484 . 239 100 106 . . 171 260 24 . . . . 205 72 . . . 991 Explosive 12265 | . . 138 . 35 . 689 387 292 . 499 . 178 . 246 . 1872 . . . 207 . 364 503 798 1106 2529 2422 Electromagnetic 5332 | . . . 626 . . . 405 961 . 148 . 181 . . . 1112 . . . . . 299 123 392 . 147 938 Impact . | . . . . . . . . . . . . . . . . . . . . . . . . . . . . Slashing 1787 | . . . . . . . 247 168 . 1044 . 328 . . . . . . . . . . . . . . . Piercing 6122 | . . . . . . . . . . . . . . 1065 141 . . . . 1050 . 300 1602 1289 . 607 68 Highest Corruption 19 | . 2 2 . . . 3 . . . . 1 1 . . . . . . . . . . 5 5 . 2 19 Average Corruption 3 | . 2 2 . . . 3 . . . . 1 1 . . . . . . . . . . 4 5 . 1 7 Corruption Purged . | . . . . . . . . . . . . . . . . . . . . . . . . . . . . Effects 164 | . 6 10 . . . 3 . . . . 4 11 . . . . . . . . . . 14 55 . 9 52 Message Errors 40 | . 2 3 . . . 1 . . . . . 4 . . . . . . . . . . 7 15 . 3 5 Matter Fused 22 | . . . . . . . . . . . . . . . . . . . . . . . 2 11 . . 9 Heat Flow Errors 17 | . 1 . . . . 1 . . . . . . . . . . . . . . . . 2 7 . 2 4 Energy Discharges 18 | . . 1 . . . 1 . . . . 2 2 . . . . . . . . . . 2 5 . . 5 Parts Rejected 1 | . . . . . . . . . . . . . . . . . . . . . . . . 1 . . . Data Loss (minor) 23 | . 2 4 . . . . . . . . 2 2 . . . . . . . . . . . 5 . 2 6 Data Loss (major) 4 | . . . . . . . . . . . . . . . . . . . . . . . . 1 . . 3 Misfires 4 | . . . . . . . . . . . . . . . . . . . . . . . . 2 . . 2 Misdirections 9 | . . . . . . . . . . . . . . . . . . . . . . . . . . . 9 Targeting Errors 22 | . 1 2 . . . . . . . . . 3 . . . . . . . . . . 1 6 . 2 7 Weapon Failures 4 | . . . . . . . . . . . . . . . . . . . . . . . . 2 . . 2 Overload Shots 1 | . . . . . . . . . . . 1 . . . . . . . . . . . . . . . . Overflow Damage 1116 | . 1 . . 11 . 19 2 18 . 42 . 58 . 120 3 51 . . . 151 . 17 175 45 34 209 160 Projectiles 25 | . 1 . . . . 19 . 2 . . . . . . . . . . . . . 3 . . . . . Explosions 511 | . . . . . . . 2 . . . . . . 20 . 51 . . . . . 14 . 21 34 209 160 Melee 580 | . . . . 11 . . . 16 . 42 . 58 . 100 3 . . . . 151 . . 175 24 . . . Knockbacks 10 | . . . . . . . . . . . . . . . . 6 . . . . . 3 1 . . . . Impact . | . . . . . . . . . . . . . . . . . . . . . . . . . . . . Kinetic 10 | . . . . . . . . . . . . . . . . 6 . . . . . 3 1 . . . . Secondary . | . . . . . . . . . . . . . . . . . . . . . . . . . . . . Self-Inflicted Damage 882 | . . . 63 . . 37 97 13 . 2 . . . 33 . 116 . . . . . . . 42 22 . 457 Shots 21 | . . . 3 . . 1 2 1 . 1 . . . 1 . 3 . . . . . . . 2 1 . 6 Rammed 58 | 3 5 1 1 8 . 2 7 . . . 1 . . . . . . 3 . . . . . . . . 27 Targets Rammed 59 | 3 5 1 1 8 . 2 7 . . . 1 . . . . . . 4 . . . . . . . . 27 Kicked . | . . . . . . . . . . . . . . . . . . . . . . . . . . . . Crushed 1 | . . . . . . . . . . . . . . . . . . 1 . . . . . . . . . Highest Temperature 350 | . 221 158 251 245 . 230 167 248 . 135 121 96 197 67 4 270 92 91 . 125 . 160 280 350 . 173 247 Average Temperature 64 | . 62 71 82 83 . 59 45 68 . 36 25 41 71 18 4 80 46 34 . 47 . 38 99 83 . 99 71 Received Heat Transfer 3916 | . 249 12 300 36 . 117 234 297 . 546 54 375 90 51 51 525 . . . 33 18 192 93 45 55 88 455 Effects 6 | . . . 2 2 . . . . . . . . . . . 1 . . . . . . . . . . 1 Energy Bleed 3 | . . . 2 . . . . . . . . . . . . 1 . . . . . . . . . . . Interference 3 | . . . . 2 . . . . . . . . . . . . . . . . . . . . . . 1 Siege Activations . | . . . . . . . . . . . . . . . . . . . . . . . . . . . . Robots Corrupted 14 | . . . . . . . 1 1 . . . 1 . . . 3 . . . . . . 1 1 . 1 5 Combat Hostiles 11 | . . . . . . . 1 1 . . . . . . . 1 . . . . . . 1 1 . 1 5 Parts Fried 34 | . . . 4 . . . 2 5 . 1 . . . . . 8 . . . . . 3 2 1 . 1 7 Impact Corruptions 1 | . . . . 1 . . . . . . . . . . . . . . . . . . . . . . . Robots Melted 1 | . . . . . . . . . . . . . . . . . . . . . . . . . . . 1 Combat Hostiles 1 | . . . . . . . . . . . . . . . . . . . . . . . . . . . 1 Parts Melted 11 | . 2 . . . . . 1 1 . . . . . 1 1 . . . . . . 1 . 1 . . 3 Heat Transferred 8550 | 100 1665 185 1038 259 . 359 1125 692 . 444 185 210 . . 333 436 37 . . . . 372 74 . . . 1036 Parts Sabotaged 4 | . . . . . . . . . . . . . . . . . . . . 4 . . . . . . . Parts Stolen . | . . . . . . . . . . . . . . . . . . . . . . . . . . . . Parts Stripped . | . . . . . . . . . . . . . . . . . . . . . . . . . . . . Power Chain Reactions 11 | . . . 2 . . . 4 5 . . . . . . . . . . . . . . . . . . . Missiles Intercepted . | . . . . . . . . . . . . . . . . . . . . . . . . . . . . Alert | -11 -10 -10 -9 -9 -9 -8 -8 -8 -7 -7 -7 -7 -6 -6 -5 -5 -4 -4 -4 -4 -4 -4 -3 -3 -2 -2 -1 ------- Run | Scr Mat Min Mat Min Exi Min Mat Gar Fac Gar Fac Gar Fac Gar Fac Gar Fac Was Fac Gar Fac Gar Res Gar Res Gar Acc Peak Influence 1698 | . 298 58 317 175 . 280 487 1440 813 1167 663 854 996 1525 983 1698 891 265 77 465 258 949 665 1002 1474 845 1031 Initial 891 | . . 58 . 90 . . 55 315 756 429 612 234 448 557 800 688 891 263 31 53 243 180 533 458 563 227 506 Average 595 | . 91 21 130 42 . 98 225 1006 766 800 468 698 655 1124 923 1312 704 226 46 306 245 597 547 816 828 602 694 Maximum Alert Level 5 | . 1 . 1 . . 1 2 4 3 4 2 3 3 4 3 5 3 1 . 2 1 3 2 3 4 3 3 Low Security (%) 22 | 100 93 100 79 100 . 84 47 . . . . . . . . . . 12 100 27 . 4 . . . 8 . Level 1 12 | . 6 . 20 . . 15 39 9 . 1 31 5 . . . . . 87 . 49 100 11 . . 10 22 . Level 2 25 | . . . . . . . 13 8 1 29 68 31 61 10 . 4 35 . . 22 . 56 100 23 45 11 64 Level 3 26 | . . . . . . . . 35 98 57 . 62 38 36 100 14 64 . . . . 28 . 76 17 56 35 Level 4 12 | . . . . . . . . 46 . 11 . . . 53 . 70 . . . . . . . . 25 . . Level 5 . | . . . . . . . . . . . . . . . . 9 . . . . . . . . . . . High Security . | . . . . . . . . . . . . . . . . . . . . . . . . . . . . Max Security . | . . . . . . . . . . . . . . . . . . . . . . . . . . . . Squads Dispatched 48 | . 3 1 3 . . . 2 . . . 5 . 6 . 2 . 1 . 1 . 1 . 3 . 6 . 14 Investigation 10 | . 2 1 . . . . 1 . . . 2 . . . . . . . 1 . 1 . . . 1 . 1 Extermination 9 | . . . . . . . . . . . 2 . . . . . . . . . . . 3 . 1 . 3 Reinforcement 14 | . 1 . 3 . . . 1 . . . . . 4 . 1 . . . . . . . . . 2 . 2 Assault 6 | . . . . . . . . . . . . . . . 1 . 1 . . . . . . . 2 . 2 Garrison 9 | . . . . . . . . . . . 1 . 2 . . . . . . . . . . . . . 6 Intercept . | . . . . . . . . . . . . . . . . . . . . . . . . . . . . Construction Impeded 5 | . . . 1 . . . . . . . . . 1 . . . . . . . . . . . 2 . 1 Haulers Reinforced 4 | . . . . . . . . . . . . . 3 . 1 . . . . . . . . . . . . Stealth | -11 -10 -10 -9 -9 -9 -8 -8 -8 -7 -7 -7 -7 -6 -6 -5 -5 -4 -4 -4 -4 -4 -4 -3 -3 -2 -2 -1 --------- Run | Scr Mat Min Mat Min Exi Min Mat Gar Fac Gar Fac Gar Fac Gar Fac Gar Fac Was Fac Gar Fac Gar Res Gar Res Gar Acc Distress Signals 17 | . 1 2 . . . . 6 1 . . 1 . 2 . . . . . . . . . . . 1 . 3 Communications Jammed 179 | . . . . . . . . . . . . . . . . . . . . . . . 33 . 98 . 48 Distress Signals 178 | . . . . . . . . . . . . . . . . . . . . . . . 33 . 98 . 47 Times Spotted 619 | . 26 5 39 7 . 12 36 33 4 32 17 32 24 42 7 40 4 6 . 17 1 35 29 34 36 28 73 Peak Tracking Total 14 | . 3 4 6 3 . 6 6 3 3 6 3 7 7 6 5 7 3 2 . 5 1 5 5 5 7 6 14 Tactical Retreats 67 | . 2 . 1 1 . 1 4 3 . 5 . . 1 10 . 6 . . . 2 . 14 1 3 . 3 10 Traps | -11 -10 -10 -9 -9 -9 -8 -8 -8 -7 -7 -7 -7 -6 -6 -5 -5 -4 -4 -4 -4 -4 -4 -3 -3 -2 -2 -1 ------- Run | Scr Mat Min Mat Min Exi Min Mat Gar Fac Gar Fac Gar Fac Gar Fac Gar Fac Was Fac Gar Fac Gar Res Gar Res Gar Acc Traps Triggered 98 | . 1 . . . . . 1 10 1 13 . 14 2 6 2 12 2 . . 7 . 11 2 7 . 7 . Indirectly . | . . . . . . . . . . . . . . . . . . . . . . . . . . . . Trap Hack Attempts 4 | . . . . . . . . . . . . . . . . . . . . . . 4 . . . . . Triggered . | . . . . . . . . . . . . . . . . . . . . . . . . . . . . Disarmed . | . . . . . . . . . . . . . . . . . . . . . . . . . . . . Reprogrammed . | . . . . . . . . . . . . . . . . . . . . . . . . . . . . Reused . | . . . . . . . . . . . . . . . . . . . . . . . . . . . . Traps Extracted . | . . . . . . . . . . . . . . . . . . . . . . . . . . . . Installed . | . . . . . . . . . . . . . . . . . . . . . . . . . . . . Triggered . | . . . . . . . . . . . . . . . . . . . . . . . . . . . . Power Sources Rigged 3 | . . . . . . . . 3 . . . . . . . . . . . . . . . . . . . Exploded 1 | . . . . . . . . 1 . . . . . . . . . . . . . . . . . . . Machines | -11 -10 -10 -9 -9 -9 -8 -8 -8 -7 -7 -7 -7 -6 -6 -5 -5 -4 -4 -4 -4 -4 -4 -3 -3 -2 -2 -1 ---------- Run | Scr Mat Min Mat Min Exi Min Mat Gar Fac Gar Fac Gar Fac Gar Fac Gar Fac Was Fac Gar Fac Gar Res Gar Res Gar Acc Machines Disabled 63 | . . . 1 2 . 1 2 8 . 4 1 4 1 6 2 6 1 . . 3 . 5 2 3 4 5 2 Max in Single Turn 2 | . . . 1 1 . 1 2 2 . 1 1 2 1 1 . 2 . . . 1 . 2 . 1 1 1 1 Garrison Access 3 | . . . . . . . . . . . . . . . . . . . . . . . 2 . 1 . . Garrison Relay 26 | . . . . . . . . 4 . 4 . 2 . 4 . 4 . . . 2 . 2 . 1 . 3 . Machines Sabotaged . | . . . . . . . . . . . . . . . . . . . . . . . . . . . . Garrisons Compromised . | . . . . . . . . . . . . . . . . . . . . . . . . . . . . Overloaded Fab Kills . | . . . . . . . . . . . . . . . . . . . . . . . . . . . . Fab Network Shutdowns 1 | . . . . . . . . . . . . . . . . . . . . . . . . . 1 . . Hacking | -11 -10 -10 -9 -9 -9 -8 -8 -8 -7 -7 -7 -7 -6 -6 -5 -5 -4 -4 -4 -4 -4 -4 -3 -3 -2 -2 -1 --------- Run | Scr Mat Min Mat Min Exi Min Mat Gar Fac Gar Fac Gar Fac Gar Fac Gar Fac Was Fac Gar Fac Gar Res Gar Res Gar Acc Machines Accessed 58 | . 6 1 5 . 2 . 7 . 2 . 11 . 1 . 1 . 2 . 2 . 2 . 9 . 4 . 3 Terminals 29 | . 4 . 2 . . . 4 . . . 7 . . . . . 2 . 1 . 1 . 4 . 1 . 3 Fabricators 2 | . . . . . . . . . . . 1 . . . . . . . . . . . . . 1 . . Repair Stations 6 | . 1 . 2 . . . 1 . 1 . 1 . . . . . . . . . . . . . . . . Recycling Units 1 | . 1 . . . . . . . . . . . . . . . . . . . . . . . . . . Scanalyzers 5 | . . . 1 . . . 1 . . . 1 . . . . . . . . . . . 2 . . . . Garrison Access 12 | . . . . . . . 1 . 1 . 1 . 1 . 1 . . . 1 . 1 . 3 . 2 . . Total Hacks 144 | . 22 1 17 . 5 . 20 . 2 . 24 . 1 . 2 . 7 . 7 . 5 . 17 . 7 . 7 Successful 84 | . 14 1 11 . 5 . 15 . 1 . 12 . 1 . 2 . 4 . 3 . 1 . 8 . 4 . 2 Failed 60 | . 8 . 6 . . . 5 . 1 . 12 . . . . . 3 . 4 . 4 . 9 . 3 . 5 Catastrophic 13 | . . . 1 . . . 2 . . . 2 . . . . . 3 . 2 . 1 . 1 . . . 1 Database Lockouts . | . . . . . . . . . . . . . . . . . . . . . . . . . . . . Manual 61 | . 12 . 9 . 1 . 9 . . . 6 . . . 1 . 6 . 4 . 2 . 6 . 1 . 4 Terminals 79 | . 15 . 10 . . . 10 . . . 16 . . . . . 7 . 4 . 2 . 6 . 2 . 7 Fabricators 6 | . . . . . . . . . . . 3 . . . . . . . . . . . . . 3 . . Repair Stations 18 | . 4 . 5 . . . 6 . 1 . 2 . . . . . . . . . . . . . . . . Recycling Units 3 | . 3 . . . . . . . . . . . . . . . . . . . . . . . . . . Scanalyzers 11 | . . . 2 . . . 2 . . . 1 . . . . . . . . . . . 6 . . . . Garrison Access 21 | . . . . . . . 2 . 1 . 2 . 1 . 2 . . . 3 . 3 . 5 . 2 . . Terminal Hacks 27 | . 6 1 2 . 5 . 2 . . . 6 . . . . . 3 . 1 . . . . . . . 1 Record 4 | . . . . . 4 . . . . . . . . . . . . . . . . . . . . . . Part Schematic 3 | . 1 . . . . . . . . . 2 . . . . . . . . . . . . . . . . Robot Analysis 4 | . 3 . 1 . . . . . . . . . . . . . . . . . . . . . . . . Open Door 1 | . . 1 . . . . . . . . . . . . . . . . . . . . . . . . . Branch Access Points 4 | . . . 1 . . . . . . . 1 . . . . . . . 1 . . . . . . . 1 Fabricator Index 1 | . . . . . . . . . . . . . . . . . 1 . . . . . . . . . . Garrison Index 1 | . . . . . . . 1 . . . . . . . . . . . . . . . . . . . . Unreport Threat 3 | . . . . . . . . . . . 1 . . . . . 2 . . . . . . . . . . Hauler Manifests 3 | . 1 . . . . . 1 . . . 1 . . . . . . . . . . . . . . . . Zone Layout 2 | . 1 . . . . . . . . . 1 . . . . . . . . . . . . . . . . EX-Prototype ID Bank 1 | . . . . . 1 . . . . . . . . . . . . . . . . . . . . . . Fabricator Hacks 4 | . . . . . . . . . . . 2 . . . . . . . . . . . . . 2 . . Load Schematic 2 | . . . . . . . . . . . 1 . . . . . . . . . . . . . 1 . . Build 2 | . . . . . . . . . . . 1 . . . . . . . . . . . . . 1 . . Repair Station Hacks 14 | . 2 . 4 . . . 6 . . . 2 . . . . . . . . . . . . . . . . Scan Component 7 | . 1 . 2 . . . 3 . . . 1 . . . . . . . . . . . . . . . . Repair 7 | . 1 . 2 . . . 3 . . . 1 . . . . . . . . . . . . . . . . Recycling Unit Hacks 1 | . 1 . . . . . . . . . . . . . . . . . . . . . . . . . . Retrieve Components 1 | . 1 . . . . . . . . . . . . . . . . . . . . . . . . . . Scanalyzer 6 | . . . 2 . . . 2 . . . . . . . . . . . . . . . 2 . . . . Insert Component 4 | . . . 1 . . . 1 . . . . . . . . . . . . . . . 2 . . . . Analyze 2 | . . . 1 . . . 1 . . . . . . . . . . . . . . . . . . . . Garrison Access Hacks 12 | . . . . . . . 1 . 1 . 1 . 1 . 1 . . . 1 . 1 . 3 . 2 . . Unlock Access 9 | . . . . . . . 1 . 1 . 1 . 1 . 1 . . . 1 . 1 . 1 . 1 . . Seal Access 3 | . . . . . . . . . . . . . . . . . . . . . . . 2 . 1 . . Unauthorized Hacks 20 | . 5 . 3 . . . 4 . . . 1 . . . 1 . 1 . 1 . . . 3 . . . 1 Terminals 16 | . 4 . 3 . . . 4 . . . . . . . . . 1 . . . . . 3 . . . 1 Track 5 | . 1 . 1 . . . . . . . . . . . . . . . . . . . 2 . . . 1 Botnet 6 | . 2 . 1 . . . 3 . . . . . . . . . . . . . . . . . . . . Operators 5 | . 1 . 1 . . . 1 . . . . . . . . . 1 . . . . . 1 . . . . Fabricators . | . . . . . . . . . . . . . . . . . . . . . . . . . . . . Repair Stations . | . . . . . . . . . . . . . . . . . . . . . . . . . . . . Recycling Units 1 | . 1 . . . . . . . . . . . . . . . . . . . . . . . . . . Tunnel 1 | . 1 . . . . . . . . . . . . . . . . . . . . . . . . . . Scanalyzers . | . . . . . . . . . . . . . . . . . . . . . . . . . . . . Garrison Access 3 | . . . . . . . . . . . 1 . . . 1 . . . 1 . . . . . . . . Restock 1 | . . . . . . . . . . . . . . . 1 . . . . . . . . . . . . Eject 2 | . . . . . . . . . . . 1 . . . . . . . 1 . . . . . . . . Data Cores Recovered 1 | . . . 1 . . . . . . . . . . . . . . . . . . . . . . . . Used 1 | . . . 1 . . . . . . . . . . . . . . . . . . . . . . . . Hacking Detections 46 | . 6 . 4 . . . 6 . 1 . 9 . . . 1 . 2 . 2 . 2 . 7 . 3 . 3 Full Trace Events 5 | . 1 . . . . . . . . . 1 . . . . . . . . . 1 . . . 1 . 1 Feedback Events . | . . . . . . . . . . . . . . . . . . . . . . . . . . . . Feedback Blocked . | . . . . . . . . . . . . . . . . . . . . . . . . . . . . Robot Schematics Acquired . | . . . . . . . . . . . . . . . . . . . . . . . . . . . . Robots Built . | . . . . . . . . . . . . . . . . . . . . . . . . . . . . Matter . | . . . . . . . . . . . . . . . . . . . . . . . . . . . . Time . | . . . . . . . . . . . . . . . . . . . . . . . . . . . . Total Robot Build Rating . | . . . . . . . . . . . . . . . . . . . . . . . . . . . . Part Schematics Acquired 5 | . 1 . 1 . . . 1 . . . 2 . . . . . . . . . . . . . . . . Parts Built 2 | . . . . . . . . . . . 1 . . . . . . . . . . . . . 1 . . Matter 204 | . . . . . . . . . . . 102 . . . . . . . . . . . . . 102 . . Time 76 | . . . . . . . . . . . 51 . . . . . . . . . . . . . 25 . . Total Part Build Rating 2 | . . . . . . . . . . . 1 . . . . . . . . . . . . . 1 . . Parts Repaired 7 | . 1 . 2 . . . 3 . . . 1 . . . . . . . . . . . . . . . . Time 269 | . 13 . 102 . . . 128 . . . 26 . . . . . . . . . . . . . . . . Parts Recycled . | . . . . . . . . . . . . . . . . . . . . . . . . . . . . Recycled Matter . | . . . . . . . . . . . . . . . . . . . . . . . . . . . . Retrieved Matter . | . . . . . . . . . . . . . . . . . . . . . . . . . . . . Retrieved Components 5 | . 5 . . . . . . . . . . . . . . . . . . . . . . . . . . Parts Scanalyzed 4 | . . . 1 . . . 1 . . . . . . . . . . . . . . . 2 . . . . Part Schematics Acquired 2 | . . . 1 . . . 1 . . . . . . . . . . . . . . . . . . . . Parts Damaged . | . . . . . . . . . . . . . . . . . . . . . . . . . . . . Bothacking | -11 -10 -10 -9 -9 -9 -8 -8 -8 -7 -7 -7 -7 -6 -6 -5 -5 -4 -4 -4 -4 -4 -4 -3 -3 -2 -2 -1 ------------ Run | Scr Mat Min Mat Min Exi Min Mat Gar Fac Gar Fac Gar Fac Gar Fac Gar Fac Was Fac Gar Fac Gar Res Gar Res Gar Acc Used RIF Installer 9 | . . . . . . . . 1 . 1 . 1 . 1 . 1 . . . 1 . 1 . 1 . 1 . Hotswap 1 | . . . . . . . . . . . . . . . . . . . . 1 . . . . . . . Command Fork 2 | . . . . . . . . . . 1 . . . . . . . . . . . . . . . 1 . Threat Obfuscator 1 | . . . . . . . . . . . . . . . . . . . . . . 1 . . . . . Signal Jammer 1 | . . . . . . . . . . . . . . 1 . . . . . . . . . . . . . Zone Cloak 1 | . . . . . . . . . . . . . . . . 1 . . . . . . . . . . . Robot Detection 1 | . . . . . . . . . . . . . . . . . . . . . . . . 1 . . . Patrol Navigation 1 | . . . . . . . . . . . . 1 . . . . . . . . . . . . . . . Robots Hacked 87 | . . . . . . . . 1 3 3 11 7 2 10 4 6 . . . 5 1 4 2 6 10 4 8 Non-combat 18 | . . . . . . . . . 1 . 7 . 1 . 3 . . . . . . . 1 . 3 . 2 Combat 69 | . . . . . . . . 1 2 3 4 7 1 10 1 6 . . . 5 1 4 1 6 7 4 6 Robot Hacks Applied 106 | . . . . . . . . 1 4 3 15 8 2 10 6 8 . . . 5 1 4 3 6 18 4 8 parse_system 2 | . . . . . . . . . . . 1 . . . . . . . . . . . . . 1 . . no_distress 1 | . . . . . . . . . . . . . . . 1 . . . . . . . . . . . . generate_anomaly 1 | . . . . . . . . . . . 1 . . . . . . . . . . . . . . . . find_chute 2 | . . . . . . . . . . . . . . . 2 . . . . . . . . . . . . map_walls 1 | . . . . . . . . . . . 1 . . . . . . . . . . . . . . . . randomize_corridors 1 | . . . . . . . . . 1 . . . . . . . . . . . . . . . . . . find_fabricator 1 | . . . . . . . . . . . . . . . 1 . . . . . . . . . . . . drop_inventory 3 | . . . . . . . . . . . 2 . . . 1 . . . . . . . . . . . . purge_threat 9 | . . . . . . . . . . . 1 . . . . . . . . . . . . . 8 . . disarm_traps 1 | . . . . . . . . . . . 1 . . . . . . . . . . . . . . . . map_route 4 | . . . . . . . . . . . 1 . 1 . . . . . . . . . 1 . 1 . . mark_security 1 | . . . . . . . . . . . 1 . . . . . . . . . . . . . . . . relay_feed 1 | . . . . . . . . . . . 1 . . . . . . . . . . . . . . . . find_garrison 5 | . . . . . . . . . 1 . 1 . 1 . . . . . . . . . 1 . 1 . . link_fov 1 | . . . . . . . . . . . . . . . . . . . . . . . . . . . 1 link_complan 1 | . . . . . . . . . . . . . . . . 1 . . . . . . . . . . . disrupt_area 1 | . . . . . . . . . . . . 1 . . . . . . . . . . . . . . . overload_power 2 | . . . . . . . . . . . . . . . . 2 . . . . . . . . . . . wipe_record 3 | . . . . . . . . . 1 . . . . 1 . . . . . 1 . . . . . . . go_dormant 1 | . . . . . . . . . . . . . . . . . . . . . . . . . . . 1 overwrite_iff 18 | . . . . . . . . 1 . 3 . 4 . 2 1 1 . . . 1 . . . . 1 . 4 streamctrl_high 1 | . . . . . . . . . . . . . . 1 . . . . . . . . . . . . . formatsys_low 1 | . . . . . . . . . . . . . . . . . . . . . . . . . 1 . . formatsys_high 44 | . . . . . . . . . 1 . 4 3 . 6 . 4 . . . 3 1 4 1 6 5 4 2 Relay Couplers Released 118 | . . . . . . . . 16 . 17 3 10 . 16 . 19 . . 4 7 . 8 . 5 . 13 . Ejected 7 | . . . . . . . . . . . 3 . . . . . . . 4 . . . . . . . . Machine Destruction 111 | . . . . . . . . 16 . 17 . 10 . 16 . 19 . . . 7 . 8 . 5 . 13 . Attached 45 | . . . . . . . . 1 3 3 3 5 1 5 2 7 . . 2 2 . 2 2 1 3 2 1 Robots Rewired 10 | . . . . . . . . . . . . . . . . 4 . . . . . 3 . 3 . . . Allies Hacked 3 | . . . . . . . . . . . 1 . . . . . . . . . . . 1 . 1 . . Hacks Repelled . | . . . . . . . . . . . . . . . . . . . . . . . . . . . . Allies | -11 -10 -10 -9 -9 -9 -8 -8 -8 -7 -7 -7 -7 -6 -6 -5 -5 -4 -4 -4 -4 -4 -4 -3 -3 -2 -2 -1 -------- Run | Scr Mat Min Mat Min Exi Min Mat Gar Fac Gar Fac Gar Fac Gar Fac Gar Fac Was Fac Gar Fac Gar Res Gar Res Gar Acc Total Allies 94 | . . 2 . 3 . . . 1 1 4 4 9 . 11 1 9 . 2 . 4 1 7 1 10 10 4 10 Largest Group 8 | . . 2 . 3 3 3 . 1 1 2 3 5 3 4 1 8 6 5 2 2 1 3 3 6 7 3 4 Highest-Rated Group 377 | . . 49 . 40 40 40 . 16 20 45 96 128 96 82 49 303 244 192 83 83 49 138 138 308 377 148 245 Highest-Rated Ally 69 | . . 31 . 16 16 16 . 16 20 29 32 32 32 32 49 49 47 46 46 56 49 49 64 64 69 64 69 Total Orders 32 | . . . . . . . . . . 2 . 8 1 . . 3 . . . 1 . 7 . 5 3 . 2 STAY 18 | . . . . . . . . . . 1 . 4 . . . 2 . . . 1 . 6 . 2 . . 2 ROAM 1 | . . . . . . . . . . 1 . . . . . . . . . . . . . . . . . FOLLOW 9 | . . . . . . . . . . . . 4 . . . 1 . . . . . 1 . 3 . . . AID 4 | . . . . . . . . . . . . . 1 . . . . . . . . . . . 3 . . Ally Attacks 613 | . . 7 . . . 13 . 6 2 16 25 43 32 52 7 49 18 69 . 15 . 31 34 19 134 8 33 Total Damage 19000 | . . 146 . . . 131 . 83 49 204 764 1270 1141 684 323 1362 686 1946 . 315 . 655 1369 441 5286 233 1912 Kills 136 | . . 1 . . . 1 . 1 . 4 5 17 9 13 . 10 3 4 . 3 . 6 9 4 35 . 11 Allies Corrupted 5 | . . . . . . . . . . . . 2 . . . . . . . . . . . . 1 2 . Allies Melted . | . . . . . . . . . . . . . . . . . . . . . . . . . . . . Intel | -11 -10 -10 -9 -9 -9 -8 -8 -8 -7 -7 -7 -7 -6 -6 -5 -5 -4 -4 -4 -4 -4 -4 -3 -3 -2 -2 -1 ------- Run | Scr Mat Min Mat Min Exi Min Mat Gar Fac Gar Fac Gar Fac Gar Fac Gar Fac Was Fac Gar Fac Gar Res Gar Res Gar Acc Robot Analysis Total 4 | . 3 . 1 . . . . . . . . . . . . . . . . . . . . . . . . Derelict Logs Recovered 4 | . . 1 . 3 . . . . . . . . . . . . . . . . . . . . . . . Drone Launches . | . . . . . . . . . . . . . . . . . . . . . . . . . . . . Drone Recoveries . | . . . . . . . . . . . . . . . . . . . . . . . . . . . . Exploration | -11 -10 -10 -9 -9 -9 -8 -8 -8 -7 -7 -7 -7 -6 -6 -5 -5 -4 -4 -4 -4 -4 -4 -3 -3 -2 -2 -1 ------------- Run | Scr Mat Min Mat Min Exi Min Mat Gar Fac Gar Fac Gar Fac Gar Fac Gar Fac Was Fac Gar Fac Gar Res Gar Res Gar Acc Turns Passed 33650 | 103 908 1292 1764 1303 478 879 1797 3355 407 1964 1168 1596 417 1649 319 1699 279 456 218 1649 195 2213 1994 1704 765 1669 1410 Spaces Moved 15805 | 40 402 630 718 611 236 387 636 1296 184 803 586 747 192 934 193 827 201 268 136 770 135 990 968 855 457 776 827 Core 307 | 2 . . . . . . . . . 2 . . . . . . . . . . . . . . . . 303 Treads 6269 | 38 402 630 718 611 236 387 636 1296 184 32 133 . . . . 2 . 1 . 23 . 64 185 282 . 409 . Legs 1580 | . . . . . . . . . . 326 . . . . . . . . . . . 501 722 17 . . 14 Wheels 7378 | . . . . . . . . . . 443 453 747 192 934 193 825 201 267 136 747 135 425 . 556 457 367 300 Hover 271 | . . . . . . . . . . . . . . . . . . . . . . . 61 . . . 210 Flight . | . . . . . . . . . . . . . . . . . . . . . . . . . . . . Fastest Speed 40 | 50 160 180 180 200 200 200 200 200 200 120 125 140 130 120 120 120 120 120 150 130 130 120 150 120 120 120 40 Average Speed 166 | 154 166 180 194 200 200 200 201 203 200 191 165 141 130 124 120 151 129 141 150 169 130 169 173 147 120 173 122 Slowest Speed 3400 | 160 180 180 200 200 200 200 205 205 200 1400 220 150 130 140 120 260 130 260 150 260 130 280 300 240 120 280 3400 Overloaded Moves . | . . . . . . . . . . . . . . . . . . . . . . . . . . . . Propulsion Burnouts . | . . . . . . . . . . . . . . . . . . . . . . . . . . . . Robots Hopped . | . . . . . . . . . . . . . . . . . . . . . . . . . . . . Cave-ins Triggered . | . . . . . . . . . . . . . . . . . . . . . . . . . . . . Exploration Rate (%) 53 | 4 68 99 74 97 62 97 40 89 6 94 19 85 10 87 8 83 10 86 7 66 6 84 37 75 26 67 25 Regions Visited 27 Branch Regions 4 Pre-discovered Areas 2 | . 1 . . . 1 . . . . . . . . . . . . . . . . . . . . . . Known Exits Taken 10 | . . . 1 . . . 1 . 1 . 1 . 1 . 1 . . . 1 . 1 . 1 . 1 . . Unknown Exits Taken 6 | 1 1 1 . 1 1 1 . . . . . . . . . . . . . . . . . . . . . Scrap Searched 3 | . . 1 . 1 . 1 . . . . . . . . . . . . . . . . . . . . . Spaces Dug 90 | . . . . . . 17 1 27 1 16 . 4 . 12 . . . . . . . 7 1 1 2 . 1 Terrain Destroyed 872 | . . 20 4 5 . 63 52 67 1 40 . 6 . 52 . 69 . 2 . 42 . 48 23 107 61 56 154 Melee 29 | . . . . . . . 1 2 1 16 . . . 5 . . . . . . . 1 1 1 . . 1 Projectile 60 | . . 1 . . . . . . . . . . . . . . . 2 . 7 . 8 . 16 5 10 11 AOE 783 | . . 19 4 5 . 63 51 65 . 24 . 6 . 47 . 69 . . . 35 . 39 22 90 56 46 142 Terrain Rammed . | . . . . . . . . . . . . . . . . . . . . . . . . . . . . Walls Destroyed . | . . . . . . . . . . . . . . . . . . . . . . . . . . . . Machines Disabled . | . . . . . . . . . . . . . . . . . . . . . . . . . . . . Actions | -11 -10 -10 -9 -9 -9 -8 -8 -8 -7 -7 -7 -7 -6 -6 -5 -5 -4 -4 -4 -4 -4 -4 -3 -3 -2 -2 -1 --------- Run | Scr Mat Min Mat Min Exi Min Mat Gar Fac Gar Fac Gar Fac Gar Fac Gar Fac Was Fac Gar Fac Gar Res Gar Res Gar Acc Total 20917 | 59 524 681 981 662 244 461 1047 1870 212 1073 750 1195 269 1208 250 1163 217 311 150 1038 152 1396 1188 1124 638 990 1064 Wait 1900 | . 40 2 129 20 3 40 285 382 9 19 61 178 6 22 . 54 3 3 10 118 14 181 77 29 105 65 45 Move 15780 | 40 401 629 717 610 235 386 635 1295 183 802 585 745 191 933 192 826 201 267 135 769 134 989 967 854 457 775 827 Hop . | . . . . . . . . . . . . . . . . . . . . . . . . . . . . Pick Up 259 | 2 12 5 21 3 2 3 14 18 1 20 21 20 2 13 6 25 2 6 2 5 . 7 13 15 7 8 6 Fast Attach 128 | 6 3 1 7 2 . 1 7 4 . 10 6 5 1 4 1 3 . . . 4 . 11 21 9 . 5 17 Attach 94 | . 1 . 6 . . . 1 3 2 9 2 4 2 6 4 14 2 2 . 1 . 8 2 6 4 2 13 Detach 19 | . 1 . 1 . . . 1 . . 1 2 1 1 1 . 2 . 1 . . . 2 . . . . 5 Swap 377 | . 3 4 14 2 1 8 27 25 5 19 23 35 8 33 6 19 5 . 2 18 1 14 16 23 18 24 24 Drop 241 | . 2 1 27 5 3 4 17 21 . 14 13 22 1 12 3 13 2 7 1 5 . 7 29 16 2 12 2 Fire 1201 | 9 56 38 58 12 . 17 49 91 3 61 36 77 41 102 19 99 2 21 . 43 1 78 18 76 45 56 93 Melee 230 | . . . . . . . 4 14 8 47 . 3 . 34 3 . . . . 16 2 19 35 31 . 11 3 Ram 29 | . . . . . . . . . . . . . . . . . . . . . . . . . . . 29 Kick . | . . . . . . . . . . . . . . . . . . . . . . . . . . . . Crush 31 | 2 5 1 1 8 . 2 7 . . . 1 . . . . . . 4 . . . . . . . . . Escape Stasis 559 | . . . . . . . . 14 . 71 . 104 16 48 16 80 . . . 56 . 62 10 50 . 32 . Rewire 62 | . . . . . . . . . 1 . . 1 . . . 28 . . . 3 . 14 . 15 . . . Trap 7 | . . . . . . . . 3 . . . . . . . . . . . . . 4 . . . . . Miscellaneous . | . . . . . . . . . . . . . . . . . . . . . . . . . . . . Route ------- -11/Scrapyard -10/Materials (discovered 2 exits: *Mat / *Min) -10/Mines (discovered 2 exits: *Mat x2) -9/Materials (discovered 5 exits: *Mat x3 / *Min / *Sto) -9/Mines (discovered 4 exits: *Mat x2 / *Exi / [*Zio]) -9/Exiles (discovered 2 exits: [*Min x2]) -8/Mines (discovered 2 exits: *Mat x2) -8/Materials (discovered 3 exits: *Fac x2 / Gar) -8/Garrison (discovered 3 exits: *Fac x3) -7/Factory -7/Garrison (discovered 3 exits: *Fac x3) -7/Factory (discovered 4 exits: *Fac / Low x2 / Gar) -7/Garrison (discovered 3 exits: *Fac x3) -6/Factory -6/Garrison (discovered 3 exits: *Fac x3) -5/Factory -5/Garrison (discovered 3 exits: *Fac x3) -4/Factory -4/Waste -4/Factory (discovered 6 exits: Upp x2 / Ext x2 / Arm / Gar) -4/Garrison (discovered 2 exits: *Fac x2) -4/Factory -4/Garrison (discovered 3 exits: *Res x3) -3/Research (discovered 2 exits: [*Tes] / Gar) -3/Garrison (discovered 3 exits: *Res x3) -2/Research (discovered 2 exits: Acc / Gar) -2/Garrison (discovered 2 exits: *Acc x2) -1/Access (discovered 1 exit: Com) History --------- Turn | Location | Event 10 | -11/Scrapyard | Discovered new exit (range 14) 104 | -11/Scrapyard | Entered Materials 300 | -10/Materials | Build established: Mutant 394 | -10/Materials | Discovered new exit (range 10) 919 | -10/Materials | Discovered new exit (range 11) 968 | -10/Materials | Repaired Lgt. Treads 989 | -10/Materials | Build established: Hauler-Mutant 1012 | -10/Materials | Entered Mines 1015 | -10/Mines | Met a Derelict shopkeep closing up shop 1343 | -10/Mines | Excavation squad dispatched 1343 | -10/Mines | A large section of the Mines collapsed 1593 | -10/Mines | Excavation squad dispatched 1800 | -10/Mines | Discovered new exit (range 11) 1821 | -10/Mines | Discovered new exit (range 15) 1863 | -10/Mines | Learned Materials emergency access door positions 2056 | -10/Mines | Core integrity fell below 50% 2304 | -10/Mines | Entered Materials 2304 | -9/Materials | Evolved 2 slots: Utility x1, Weapon x1 2537 | -9/Materials | Identified exit to Mines 2537 | -9/Materials | Identified exit to Storage 2618 | -9/Materials | Build established: Hauler-Tank 2643 | -9/Materials | Discovered new exit (range 8) 2972 | -9/Materials | Discovered new exit (range 7) 3282 | -9/Materials | Repaired Imp. Assault Rifle 3373 | -9/Materials | Discovered new exit (range 5) 3498 | -9/Materials | Build established: Hauler-Mutant 3810 | -9/Materials | Build established: Hauler-Tank 3905 | -9/Materials | Repaired Imp. EM Shotgun 4068 | -9/Materials | Entered Mines 4469 | -9/Mines | Discovered new exit (range 5) 4719 | -9/Mines | Discovered new exit (range 15) 4732 | -9/Mines | A Derelict revealed a hidden shortcut to a safe place 4837 | -9/Mines | Learned 4 Materials zone layouts 4870 | -9/Mines | Received a Rocket Launcher from a helpful Derelict 5047 | -9/Mines | Deemed a non-threat by the Exiles lab entrance 5203 | -9/Mines | Assisted by bots powering up and referring to "LRC-V3" 5357 | -9/Mines | Discovered new exit (range 5) 5371 | -9/Mines | Entered Exiles 5371 | -9/Exiles | Accompanied by 3 allies 5401 | -9/Exiles | Discovered new exit (range 14) 5455 | -9/Exiles | Met 8R-AWN 5487 | -9/Exiles | Met EX-HEX 5543 | -9/Exiles | Met EX-BIN 5571 | -9/Exiles | Aligned with FarCom system 5573 | -9/Exiles | Given EX-Vault access code 5619 | -9/Exiles | Opened EX-Vault 5635 | -9/Exiles | Found PSU Rigger 5642 | -9/Exiles | Found AWS/Thermal 5684 | -9/Exiles | Warned to stay clear of 0b10 Research branches 5748 | -9/Exiles | Met EX-DEC 5762 | -9/Exiles | Learned location of Zion (-7) 5822 | -9/Exiles | Discovered new exit (range 12) 5849 | -9/Exiles | Stole two prototypes: PSU Rigger, AWS/Thermal 5849 | -9/Exiles | Entered Mines 5849 | -8/Mines | Accompanied by 3 allies 5895 | -8/Mines | Discovered new exit (range 15) 6015 | -8/Mines | Discovered new exit (range 10) 6212 | -8/Mines | Build established: Hauler-Mutant 6597 | -8/Mines | Build established: Hauler-Skirmisher 6728 | -8/Mines | Entered Materials 6728 | -8/Materials | Evolved 2 slots: Utility x2 6729 | -8/Materials | Identified exit to Factory 7852 | -8/Materials | Discovered exit to Factory (range 6) 8014 | -8/Materials | Repaired Adv. Beam Cannon 8042 | -8/Materials | Repaired Lgt. Treads 8094 | -8/Materials | Repaired Imp. Assault Rifle 8465 | -8/Materials | Identified exit to Garrison 8525 | -8/Materials | Entered Garrison 8580 | -8/Garrison | Triggered checkpoint 8698 | -8/Garrison | Discovered exit to Factory (range 13) 8792 | -8/Garrison | Triggered checkpoint 8884 | -8/Garrison | Build established: Hauler-Mutant 8958 | -8/Garrison | Triggered checkpoint 8978 | -8/Garrison | Discovered exit to Factory (range 14) 9115 | -8/Garrison | Triggered checkpoint 9222 | -8/Garrison | Discovered exit to Factory (range 11) 9253 | -8/Garrison | Installed Relay Interface Framework 9384 | -8/Garrison | Triggered checkpoint 9407 | -8/Garrison | Garrison Relay disabled 9444 | -8/Garrison | Triggered checkpoint 10303 | -8/Garrison | Triggered checkpoint 10378 | -8/Garrison | Garrison Relay disabled 10420 | -8/Garrison | Triggered checkpoint 10833 | -8/Garrison | Build established: Bothacker-Mutant 11020 | -8/Garrison | Triggered checkpoint 11128 | -8/Garrison | Garrison Relay disabled 11347 | -8/Garrison | Triggered checkpoint 11769 | -8/Garrison | Garrison Relay disabled 11880 | -8/Garrison | Entered Factory 11880 | -7/Factory | Evolved 2 slots: Utility x2 11882 | -7/Factory | FarCom data flow suspended 12272 | -7/Factory | Identified exit to Garrison 12287 | -7/Factory | Entered Garrison 12287 | -7/Garrison | Accompanied by 1 ally 12341 | -7/Garrison | Triggered checkpoint 12372 | -7/Garrison | Triggered checkpoint 12453 | -7/Garrison | Lost 9 parts (1p3n5w) 12454 | -7/Garrison | Destroyed 7 combat bots 12622 | -7/Garrison | Discovered new exit (range 14) 12854 | -7/Garrison | Triggered checkpoint 12902 | -7/Garrison | Garrison Relay disabled 13134 | -7/Garrison | Discovered new exit (range 9) 13180 | -7/Garrison | Expanded RIF knowledge: Command Fork 13264 | -7/Garrison | Triggered checkpoint 13389 | -7/Garrison | Garrison Relay disabled 13572 | -7/Garrison | Triggered checkpoint 13644 | -7/Garrison | Core integrity fell below 50% 13679 | -7/Garrison | Lost 3 parts (1p1u1w) 13708 | -7/Garrison | Garrison Relay disabled 13878 | -7/Garrison | Discovered new exit (range 14) 14003 | -7/Garrison | Triggered checkpoint 14039 | -7/Garrison | Garrison Relay disabled 14251 | -7/Garrison | Entered Factory 14422 | -7/Factory | Repaired Hcp. Storage Unit 14647 | -7/Factory | Discovered new exit (range 15) 15244 | -7/Factory | Identified exit to Lower Caves 15367 | -7/Factory | Fabricated Hcp. Storage Unit (x1) 15386 | -7/Factory | Garrison activated, responded to threat 15405 | -7/Factory | Identified exit to Garrison 15419 | -7/Factory | Entered Garrison 15419 | -7/Garrison | Accompanied by 3 allies 15476 | -7/Garrison | Triggered checkpoint 15502 | -7/Garrison | Triggered checkpoint 15620 | -7/Garrison | Lost 3 parts (1p2w) 15697 | -7/Garrison | Discovered new exit (range 8) 15804 | -7/Garrison | Triggered checkpoint 15854 | -7/Garrison | Core integrity fell below 20% 15884 | -7/Garrison | Build established: Bothacker-Tank 15921 | -7/Garrison | Discovered new exit (range 8) 15939 | -7/Garrison | Expanded RIF knowledge: Watcher Feeds 16001 | -7/Garrison | Triggered checkpoint 16020 | -7/Garrison | Garrison Relay disabled 16180 | -7/Garrison | Spotted B-75 Beast 16303 | -7/Garrison | Build established: Bothacker-Mutant 16428 | -7/Garrison | Triggered checkpoint 16583 | -7/Garrison | Discovered new exit (range 14) 16692 | -7/Garrison | Garrison Relay disabled 17015 | -7/Garrison | Entered Factory 17015 | -6/Factory | Accompanied by 3 allies 17015 | -6/Factory | Evolved 2 slots: Propulsion x1, Utility x1 17239 | -6/Factory | Garrison activated, responded to threat 17431 | -6/Factory | Identified exit to Garrison 17432 | -6/Factory | Entered Garrison 17600 | -6/Garrison | Triggered checkpoint 17698 | -6/Garrison | Triggered checkpoint 17769 | -6/Garrison | Garrison Relay disabled 17815 | -6/Garrison | Discovered new exit (range 13) 17928 | -6/Garrison | Triggered checkpoint 17952 | -6/Garrison | Triggered checkpoint 18054 | -6/Garrison | Discovered new exit (range 10) 18145 | -6/Garrison | Discovered new exit (range 8) 18168 | -6/Garrison | Expanded RIF knowledge: Signal Jamming 18184 | -6/Garrison | Triggered checkpoint 18224 | -6/Garrison | Garrison Relay disabled 18464 | -6/Garrison | Triggered checkpoint 18547 | -6/Garrison | Garrison Relay disabled 18590 | -6/Garrison | Triggered checkpoint 18840 | -6/Garrison | Build established: Botlord-Mutant 19000 | -6/Garrison | Triggered checkpoint 19011 | -6/Garrison | Garrison Relay disabled 19081 | -6/Garrison | Entered Factory 19081 | -5/Factory | Accompanied by 1 ally 19081 | -5/Factory | Evolved 2 slots: Utility x2 19381 | -5/Factory | First assault squad dispatched 19396 | -5/Factory | Identified exit to Garrison 19400 | -5/Factory | Entered Garrison 19464 | -5/Garrison | Spotted B-75 Beast 19471 | -5/Garrison | Triggered checkpoint 19471 | -5/Garrison | Triggered checkpoint 19537 | -5/Garrison | Destroyed 9 combat bots 19554 | -5/Garrison | Lost 8 parts (2n2u4w) 19571 | -5/Garrison | Destroyed B-75 Beast 19611 | -5/Garrison | Triggered checkpoint 19706 | -5/Garrison | Triggered checkpoint 19803 | -5/Garrison | Garrison Relay disabled 20064 | -5/Garrison | Discovered new exit (range 8) 20166 | -5/Garrison | Triggered checkpoint 20213 | -5/Garrison | Garrison Relay disabled 20437 | -5/Garrison | Discovered new exit (range 13) 20459 | -5/Garrison | Expanded RIF knowledge: Zone Cloak 20582 | -5/Garrison | Triggered checkpoint 20610 | -5/Garrison | Garrison Relay disabled 20736 | -5/Garrison | Discovered new exit (range 8) 20840 | -5/Garrison | Triggered checkpoint 20904 | -5/Garrison | Lost 3 parts (3w) 20916 | -5/Garrison | Garrison Relay disabled 20922 | -5/Garrison | Triggered checkpoint 20970 | -5/Garrison | Triggered checkpoint 21099 | -5/Garrison | Entered Factory 21099 | -4/Factory | Accompanied by 6 allies 21099 | -4/Factory | Evolved 2 slots: Utility x2 21349 | -4/Factory | First assault squad dispatched 21377 | -4/Factory | Discovered new exit (range 16) 21378 | -4/Factory | Sucked down chute 21378 | -4/Factory | Entered Waste 21378 | -4/Waste | Met up with 1 ally sucked down the chute earlier 21379 | -4/Waste | Met a frightened Derelict 21384 | -4/Waste | Found Gamma Bomb Array 21415 | -4/Waste | 3 allies followed down the chute 21418 | -4/Waste | Spotted C-40 Crusher 21422 | -4/Waste | Destroyed C-40 Crusher 21440 | -4/Waste | Spotted C-40 Crusher 21451 | -4/Waste | Destroyed C-40 Crusher 21454 | -4/Waste | Spotted C-40 Crusher 21465 | -4/Waste | Allies destroyed C-40 Crusher 21479 | -4/Waste | Allies destroyed C-40 Crusher 21485 | -4/Waste | Spotted C-40 Crusher 21492 | -4/Waste | Found Enh. Force Lance 21506 | -4/Waste | Allies destroyed C-40 Crusher 21535 | -4/Waste | Allies destroyed C-40 Crusher 21631 | -4/Waste | Discovered new exit (range 21) 21701 | -4/Waste | Build established: Hauler-Gunner 21711 | -4/Waste | Found Damper Plating 21834 | -4/Waste | Entered Factory 21834 | -4/Factory | Accompanied by 2 allies 21876 | -4/Factory | Identified exit to Upper Caves 21876 | -4/Factory | Identified exit to Extension 21876 | -4/Factory | Identified exit to Armory 22030 | -4/Factory | Identified exit to Garrison 22052 | -4/Factory | Entered Garrison 22052 | -4/Garrison | Accompanied by 2 allies 22195 | -4/Garrison | Build established: Botlord-Gunner 22502 | -4/Garrison | Triggered checkpoint 22506 | -4/Garrison | Triggered checkpoint 22654 | -4/Garrison | Discovered new exit (range 11) 22688 | -4/Garrison | Expanded RIF knowledge: Hotswap 22722 | -4/Garrison | Triggered checkpoint 22792 | -4/Garrison | Garrison Relay disabled 22858 | -4/Garrison | Build established: Botlord-Mutant 23146 | -4/Garrison | Discovered new exit (range 19) 23222 | -4/Garrison | Triggered checkpoint 23412 | -4/Garrison | Garrison Relay disabled 23701 | -4/Garrison | Entered Factory 23778 | -4/Factory | Spotted B-86 Titan 23893 | -4/Factory | Identified exit to Garrison 23896 | -4/Factory | Entered Garrison 23896 | -4/Garrison | Accompanied by 1 ally 23964 | -4/Garrison | Triggered checkpoint 24015 | -4/Garrison | Spotted B-86 Titan 24052 | -4/Garrison | Triggered checkpoint 24238 | -4/Garrison | Garrison Relay disabled 24915 | -4/Garrison | Lost 3 parts (1n1u1w) 24933 | -4/Garrison | Destroyed B-86 Titan 24993 | -4/Garrison | Lost 7 parts (1p2n2u2w) 25258 | -4/Garrison | Discovered new exit (range 12) 25340 | -4/Garrison | Triggered checkpoint 25400 | -4/Garrison | Garrison Relay disabled 25476 | -4/Garrison | Triggered checkpoint 25561 | -4/Garrison | Discovered new exit (range 12) 25660 | -4/Garrison | Spotted B-86 Titan 25694 | -4/Garrison | Triggered checkpoint 25834 | -4/Garrison | Build established: Scavenger-Mutant 26001 | -4/Garrison | Discovered new exit (range 10) 26030 | -4/Garrison | Expanded RIF knowledge: Threat Obfuscation 26109 | -4/Garrison | Entered Research 26109 | -3/Research | Accompanied by 3 allies 26109 | -3/Research | Evolved 2 slots: Power x1, Propulsion x1 26449 | -3/Research | Found Prototype Processor 26449 | -3/Research | Identified Exp. Melee Analysis Suite 26728 | -3/Research | Found Fusion Bomb Launcher 26941 | -3/Research | Discovered new exit (range 29) 26990 | -3/Research | Spotted B-86 Titan 27154 | -3/Research | Found Enh. Force Lance 27357 | -3/Research | Lost 4 parts (1n3u) 27752 | -3/Research | Build established: Botlord-Mutant 28101 | -3/Research | Identified exit to Garrison 28103 | -3/Research | Entered Garrison 28103 | -3/Garrison | Accompanied by 1 ally 28105 | -3/Garrison | Triggered checkpoint 28493 | -3/Garrison | Spotted B-86 Titan 28507 | -3/Garrison | Triggered checkpoint 28665 | -3/Garrison | Triggered checkpoint 28676 | -3/Garrison | Allies destroyed B-86 Titan 28705 | -3/Garrison | Lost 3 parts (2n1w) 28890 | -3/Garrison | Discovered new exit (range 12) 29166 | -3/Garrison | Discovered new exit (range 9) 29268 | -3/Garrison | Triggered checkpoint 29302 | -3/Garrison | Discovered new exit (range 8) 29316 | -3/Garrison | Expanded RIF knowledge: Robot Detection 29385 | -3/Garrison | Garrison Relay disabled 29483 | -3/Garrison | Triggered checkpoint 29807 | -3/Garrison | Entered Research 29807 | -2/Research | Accompanied by 6 allies 29807 | -2/Research | Evolved 2 slots: Utility x2 29858 | -2/Research | Discovered new exit (range 27) 30031 | -2/Research | Fabricated Hcp. Storage Unit (x1) 30057 | -2/Research | First assault squad dispatched 30285 | -2/Research | Local fabrication network quarantined 30564 | -2/Research | Spotted B-90 Cyclops 30564 | -2/Research | Spotted B-90 Cyclops 30572 | -2/Research | Identified exit to Garrison 30572 | -2/Research | Entered Garrison 30572 | -2/Garrison | Accompanied by 1 ally 30674 | -2/Garrison | Triggered checkpoint 30785 | -2/Garrison | Garrison Relay disabled 30902 | -2/Garrison | Triggered checkpoint 30902 | -2/Garrison | Triggered checkpoint 31097 | -2/Garrison | Triggered checkpoint 31135 | -2/Garrison | Spotted B-90 Cyclops 31274 | -2/Garrison | Destroyed B-90 Cyclops 31428 | -2/Garrison | Triggered checkpoint 31473 | -2/Garrison | Garrison Relay disabled 31539 | -2/Garrison | Discovered new exit (range 12) 31743 | -2/Garrison | Discovered new exit (range 10) 31774 | -2/Garrison | Expanded RIF knowledge: Command Fork 31824 | -2/Garrison | Triggered checkpoint 31851 | -2/Garrison | Garrison Relay disabled 32241 | -2/Garrison | Entered Access 32241 | -1/Access | Evolved 2 slots: Utility x2 32393 | -1/Access | Garrison activated, responded to threat 32474 | -1/Access | Spotted B-99 Colossus 32491 | -1/Access | First assault squad dispatched 32558 | -1/Access | Lost 6 parts (1p2n2u1w) 32792 | -1/Access | Lost 7 parts (2n3u2w) 33189 | -1/Access | Identified exit to Command 33301 | -1/Access | Released all parts (19) 33348 | -1/Access | Lost 3 parts (3u) 33393 | -1/Access | System corruption reached 10% 33475 | -1/Access | Core integrity fell below 50% 33579 | -1/Access | Lost 7 parts (1p2n1u3w) 33598 | -1/Access | Build established: Mutant 33612 | -1/Access | Core integrity fell below 20% 33643 | -1/Access | Spotted B-99 Colossus 33643 | -1/Access | Spotted B-99 Colossus 33651 | -1/Access | Destroyed by B-99 Colossus with Multirail Last Messages --------------- 33603_ W-44 Eye sends out distress signal. 33605_ Slammed into K-01 Serf. 33610_ K-01 Serf destroyed. 33611_ Acquired 2 matter. 33617_ System corrupted: Matter fused (-8). 33632_ System corrupted: Matter fused (-6). 33634_ Connecting with Terminal... >>Trojan(Track) Trojan loaded successfully. Testing... Tracking enabled and active. 33644_ Slug penetrates Wall. 33644_ Penetrated by Slug. 33644_ Slug penetrates Wall. 33646_ Knocked back. 33646_ Penetrated by Slug. 33646_ Slug penetrates Door. 33646_ Slug penetrates Wall. 33647_ Penetrated by Slug. 33651_ Slug penetrates Wall. Map ----- +----------------------------------------------------+ | ?????????????????????????????????????????????????? | | ?????????????????????????????????????????????????? | | ?????????????????????????????????????????????????? | | ?????????????????????????????????????????????????? | | ?????????????????????????????????????????????????? | | ?????????????????????????????????????????????????? | | ?????????????????????????????????????????????????? | | ?????????????????????????????????????????????????? | | ?????????????????????????????????????????????????? | | ?????????????????????????????????????????????????? | | ?????????????????????????????????????????????????? | | ??????????????????????????????#""""""""""#???????? | | ??????????????????????????????# #???????? | | ??????????????????????????????? #???????? | | ??????????????????????????????? #???????? | | ???????????????????????????????? #???????? | | ???????????????????????????????? #???????? | | ???????????????????????????????? #???????? | | ??????????????????????????????? ????????? | | ??????????????????#############;#; "#?????????? | | ??????????????????# ; #??????????? | | ??????????????????# # #??????????? | | ??????????????????# + +??????????? | | ??????????????????# ! # #??????????? | | ??????????????????# # #??????????? | | ??????????????????# @ ; #??????????? | | ??????????????????################ #??????????? | | ?????????????????????????????????# #??????????? | | ??????????????????????????######## #??????????? | | ??????????????????????????# #??????????? | | ??????????????????????????# #??????????? | | ?????????????############## #??????????? | | ?????????????# # #??????????? | | ?????????????# # ########??????????# | | ?????????????# # #?????????????????# | | ?????????????# """"" # ################### | | ???#?????????# """"" # | | ??%#?????????# """"" + | | ##+#######???# """""g # | | ==%% #???# """""g # g | | %% = #???# gg g #g ########### #####/# | | % #???# #g #?????????# #?# | | #???# """ """ # #?????????# #?# | | #???# g """T""" # ###########+###"" | | ""#???##/########### # ##"" | | ""#????# #?????????# # ##"" | | T"#????# #?????????# # ##T | | ""#????# #?????????# # A ##"" | | ""#????# #?????????# # " ##"" | | #??### ########### # """" ##"" | +----------------------------------------------------+ Best States ------------- Heat Dissipation 110 Energy Generation 39 Energy Capacity 710 Matter Stores 300 Matter Capacity 300 Sight Range 22 Terrain Scan Range 20 Terrain Scan Density 10 Jamming Range 8 Armor Coverage 1200 Resistance: KI 30 Resistance: TH 30 Resistance: EM 90 Propulsion Shielding 66 Weapon Cycling 20 Phase Shifting 10 Evasion (%) 57 Melee Accuracy 12 Target Analysis 8 Armor Integrity Analysis 66 Recoil Reduction 4 Offensive Hacking 10 Relay Coupler Types 136 Relay Coupler Value 5 Item Schematics ----------------- Hcp. Storage Unit | -10/Materials | Hacked Imp. EM Shotgun | -9/Materials | Scanalyzed EMP Blaster | -8/Materials | Scanalyzed Hvy. Plasma Cannon | -7/Factory | Hacked Hvy. Treads | -7/Factory | Hacked Robot Schematics ------------------ None Fabricated ------------ Hcp. Storage Unit | x1 | -7/Factory Hcp. Storage Unit | x1 | -2/Research Alien Tech Used ----------------- None Achievements -------------- Watch This! Challenges ------------ None Game ------ Seed RestorationPropulsionBiocell Manual? 0 Play Time 05:07:41 Cumulative 137.6 hours Start 2020.10.31 @ 12:42:58 End 2020.10.31 @ 18:00:26 Sessions 1 Manual Loads 0 Difficulty Rogue Special Mode Halloween2020/ForbiddenLore Game No. 45 Rogue 30 Adventurer 15 Explorer 0 Win Type - Total 3 Types 1/0/1/1/0/0/0/0/0 Lore% 76 Gallery% 74 Achievement% 61 Wizard Run 0 Options --------- ASCII 0 Keyboard 0 Movement Numpad Keybinds 0 Fullscreen 1 Font 18/SmallcapsGlow Map View 76x50 Tactical HUD 1 Map Filters NONE Filters NONE Steam 1 RUN: 23673d7b-e32c-48b2-b457-38e5fa5749c0